Body Name,Document Number,Service,Type of Expenditure,Invoice Date,Supplier Name,Cost to the Council (Amount Exc VAT),Month
EREWASH BOROUGH COUNCIL,20753,Homelessness                  ,Temporary Accommodation       ,13-Feb-2023,A38 WOODLANDS                           ,336.00,Mar-23
EREWASH BOROUGH COUNCIL,21430,Homelessness                  ,Temporary Accommodation       ,06-Feb-2023,A38 WOODLANDS                           ,336.00,Mar-23
EREWASH BOROUGH COUNCIL,21272,Merlin Way Depot              ,PPM Mechanical and Equipment  ,28-Feb-2023,ACCESS DOORS LTD                        ,"1,065.00",Mar-23
EREWASH BOROUGH COUNCIL,21406,Housing Benefit Administration,Project Grants                ,28-Feb-2023,ADVANCED BUSINESS SOFTWARE & SOLUTIONS L,"1,127.62",Mar-23
EREWASH BOROUGH COUNCIL,22009,Household Waste Collection    ,Repairs and Maintenance       ,03-Mar-2023,AEBI SCHMIDT UK LTD                     ,281.50,Mar-23
EREWASH BOROUGH COUNCIL,21670,Household Waste Collection    ,Repairs and Maintenance       ,22-Feb-2023,ALFA TAIL LIFTS LTD                     ,633.46,Mar-23
EREWASH BOROUGH COUNCIL,22678,Treasury and Bank Charges     ,Allpay/Post Office Charges    ,31-Mar-2023,ALLPAY LIMITED                          ,486.29,Mar-23
EREWASH BOROUGH COUNCIL,21387,Building Control Adv & Inform ,Contracted Services           ,02-Mar-2023,ALPHA PARTNER (MIDLANDS)  LIMITED       ,365.00,Mar-23
EREWASH BOROUGH COUNCIL,21235,Green Space                   ,Path Repairs                  ,27-Feb-2023,ALPHA PARTNER (MIDLANDS)  LIMITED       ,"3,322.80",Mar-23
EREWASH BOROUGH COUNCIL,21451,Car Parking                   ,Planned Preventative Maintenan,02-Mar-2023,ALPHA PARTNER (MIDLANDS)  LIMITED       ,735.00,Mar-23
EREWASH BOROUGH COUNCIL,21232,Property and Estates          ,Planned Preventative Maintenan,24-Feb-2023,ALPHA PARTNER (MIDLANDS)  LIMITED       ,"3,690.00",Mar-23
EREWASH BOROUGH COUNCIL,21235,Property and Estates          ,Planned Preventative Maintenan,27-Feb-2023,ALPHA PARTNER (MIDLANDS)  LIMITED       ,492.47,Mar-23
EREWASH BOROUGH COUNCIL,21017,Property and Estates          ,Repairs and Maintenance       ,19-Feb-2023,ALPHA PARTNER (MIDLANDS)  LIMITED       ,531.25,Mar-23
EREWASH BOROUGH COUNCIL,21173,Property and Estates          ,Reactive Maintenance          ,23-Feb-2023,ALPHA PARTNER (MIDLANDS)  LIMITED       ,480.00,Mar-23
EREWASH BOROUGH COUNCIL,21230,Property and Estates          ,Reactive Maintenance          ,24-Feb-2023,ALPHA PARTNER (MIDLANDS)  LIMITED       ,"1,472.02",Mar-23
EREWASH BOROUGH COUNCIL,21231,Property and Estates          ,Reactive Maintenance          ,24-Feb-2023,ALPHA PARTNER (MIDLANDS)  LIMITED       ,"2,686.77",Mar-23
EREWASH BOROUGH COUNCIL,21020,Property and Estates          ,Reactive Maintenance          ,19-Feb-2023,ALPHA PARTNER (MIDLANDS)  LIMITED       ,338.00,Mar-23
EREWASH BOROUGH COUNCIL,21021,Property and Estates          ,Reactive Maintenance          ,19-Feb-2023,ALPHA PARTNER (MIDLANDS)  LIMITED       ,364.00,Mar-23
EREWASH BOROUGH COUNCIL,21045,Property and Estates          ,Reactive Maintenance          ,20-Feb-2023,ALPHA PARTNER (MIDLANDS)  LIMITED       ,495.00,Mar-23
EREWASH BOROUGH COUNCIL,21019,Property and Estates          ,Reactive Maintenance          ,19-Feb-2023,ALPHA PARTNER (MIDLANDS)  LIMITED       ,602.00,Mar-23
EREWASH BOROUGH COUNCIL,21018,Property and Estates          ,Reactive Maintenance          ,19-Feb-2023,ALPHA PARTNER (MIDLANDS)  LIMITED       ,625.00,Mar-23
EREWASH BOROUGH COUNCIL,21031,ICT Support Services          ,General Equipment             ,17-Feb-2023,ANTALIS DOCUMENT SUPPLIES               ,475.50,Mar-23
EREWASH BOROUGH COUNCIL,21217,ICT Support Services          ,General Equipment             ,20-Feb-2023,ANTALIS DOCUMENT SUPPLIES               ,475.50,Mar-23
EREWASH BOROUGH COUNCIL,21901,EBC Balance Sheet             ,AR Refunds Control Account    ,16-Mar-2023,BRUNA CIPRIANO MATIAS,549.27,Mar-23
EREWASH BOROUGH COUNCIL,20530,Homelessness                  ,Temporary Accommodation       ,01-Feb-2023,ASCOT HOTEL                             ,280.00,Mar-23
EREWASH BOROUGH COUNCIL,20529,Homelessness                  ,Temporary Accommodation       ,25-Jan-2023,ASCOT HOTEL                             ,280.00,Mar-23
EREWASH BOROUGH COUNCIL,22196,ICT Support Services          ,Software Licences             ,01-Mar-2023,ASTUN TECHNOLOGY LTD                    ,"13,500.00",Mar-23
EREWASH BOROUGH COUNCIL,22196,ICT Support Services          ,Software Licences             ,01-Mar-2023,ASTUN TECHNOLOGY LTD                    ,"1,500.00",Mar-23
EREWASH BOROUGH COUNCIL,22196,ICT Support Services          ,Software Licences             ,01-Mar-2023,ASTUN TECHNOLOGY LTD                    ,500.00,Mar-23
EREWASH BOROUGH COUNCIL,22196,ICT Support Services          ,Software Licences             ,01-Mar-2023,ASTUN TECHNOLOGY LTD                    ,500.00,Mar-23
EREWASH BOROUGH COUNCIL,22196,ICT Support Services          ,Software Licences             ,01-Mar-2023,ASTUN TECHNOLOGY LTD                    ,500.00,Mar-23
EREWASH BOROUGH COUNCIL,21208,Property and Estates          ,Repairs and Maintenance       ,15-Feb-2023,ATMAN UK LTD                            ,596.20,Mar-23
EREWASH BOROUGH COUNCIL,21803,Arts Development              ,Special Events                ,08-Feb-2023,AVAGO CRAFTS                            ,750.00,Mar-23
EREWASH BOROUGH COUNCIL,20617,Infec Disease & Food Poisoning,Work In Default               ,02-Feb-2023,AW LYMN LTD                             ,"1,367.00",Mar-23
EREWASH BOROUGH COUNCIL,21472,Planning                      ,Structural Property Works     ,27-Feb-2023,BAILY GARNER LLP                        ,468.00,Mar-23
EREWASH BOROUGH COUNCIL,20597,Green Space                   ,Materials and Consumables     ,02-Feb-2023,BANNER GROUP LIMITED                    ,297.52,Mar-23
EREWASH BOROUGH COUNCIL,21190,Internal Audit                ,Consultants Fees              ,24-Feb-2023,BDO                                     ,"10,500.00",Mar-23
EREWASH BOROUGH COUNCIL,21467,Planning                      ,External Property Works       ,24-Feb-2023,BEYOND CONSULT LTD                      ,"1,500.00",Mar-23
EREWASH BOROUGH COUNCIL,21750,Green Space                   ,Materials and Consumables     ,03-Mar-2023,BOSTON SEEDS LIMITED                    ,"1,047.51",Mar-23
EREWASH BOROUGH COUNCIL,21649,ICT Support Services          ,General Equipment             ,20-Feb-2023,BRITISH TELECOMMUNICATIONS PLC          ,668.00,Mar-23
EREWASH BOROUGH COUNCIL,21223,ICT Support Services          ,General Equipment             ,22-Feb-2023,BRITISH TELECOMMUNICATIONS PLC          ,"1,431.21",Mar-23
EREWASH BOROUGH COUNCIL,22180,ICT Support Services          ,Telephones                    ,22-Mar-2023,BRITISH TELECOMMUNICATIONS PLC          ,414.92,Mar-23
EREWASH BOROUGH COUNCIL,22510,Planning                      ,External Property Works       ,31-Mar-2023,BROWNE JACOBSON                         ,"227,196.00",Mar-23
EREWASH BOROUGH COUNCIL,20629,Planning                      ,External Property Works       ,03-Feb-2023,BROXAP LIMITED                          ,550.00,Mar-23
EREWASH BOROUGH COUNCIL,20997,Household Waste Collection    ,Training                      ,17-Feb-2023,BUCHER MUNICIPAL LTD                    ,295.00,Mar-23
EREWASH BOROUGH COUNCIL,20997,Green Space                   ,Training                      ,17-Feb-2023,BUCHER MUNICIPAL LTD                    ,300.00,Mar-23
EREWASH BOROUGH COUNCIL,20787,Street Scene                  ,Repairs and Maintenance       ,10-Feb-2023,BUCHER MUNICIPAL LTD                    ,358.63,Mar-23
EREWASH BOROUGH COUNCIL,20972,Infec Disease & Food Poisoning,Contracted Services           ,15-Feb-2023,BUCKINGHAM FUTURES LIMITED              ,"2,178.75",Mar-23
EREWASH BOROUGH COUNCIL,21176,Infec Disease & Food Poisoning,Contracted Services           ,22-Feb-2023,BUCKINGHAM FUTURES LIMITED              ,"2,423.75",Mar-23
EREWASH BOROUGH COUNCIL,21380,Infec Disease & Food Poisoning,Contracted Services           ,01-Mar-2023,BUCKINGHAM FUTURES LIMITED              ,"2,316.13",Mar-23
EREWASH BOROUGH COUNCIL,20733,Infec Disease & Food Poisoning,Contracted Services           ,08-Feb-2023,BUCKINGHAM FUTURES LIMITED              ,"1,209.07",Mar-23
EREWASH BOROUGH COUNCIL,20733,Infec Disease & Food Poisoning,Contracted Services           ,08-Feb-2023,BUCKINGHAM FUTURES LIMITED              ,825.31,Mar-23
EREWASH BOROUGH COUNCIL,21594,Infec Disease & Food Poisoning,Contracted Services           ,08-Mar-2023,BUCKINGHAM FUTURES LIMITED              ,"2,203.75",Mar-23
EREWASH BOROUGH COUNCIL,20971,Urban Renewal                 ,Agency Staff                  ,15-Feb-2023,BUCKINGHAM FUTURES LIMITED              ,"1,406.00",Mar-23
EREWASH BOROUGH COUNCIL,21177,Urban Renewal                 ,Agency Staff                  ,22-Feb-2023,BUCKINGHAM FUTURES LIMITED              ,"1,406.00",Mar-23
EREWASH BOROUGH COUNCIL,21379,Urban Renewal                 ,Agency Staff                  ,01-Mar-2023,BUCKINGHAM FUTURES LIMITED              ,"1,406.00",Mar-23
EREWASH BOROUGH COUNCIL,20732,Urban Renewal                 ,Agency Staff                  ,08-Feb-2023,BUCKINGHAM FUTURES LIMITED              ,"1,408.53",Mar-23
EREWASH BOROUGH COUNCIL,21584,Urban Renewal                 ,Agency Staff                  ,08-Mar-2023,BUCKINGHAM FUTURES LIMITED              ,"1,406.00",Mar-23
EREWASH BOROUGH COUNCIL,20379,Occupational Health & Welfare ,Occupational Health Service   ,01-Feb-2023,BUPA HEALTH CLINICS                     ,435.32,Mar-23
EREWASH BOROUGH COUNCIL,21258,Occupational Health & Welfare ,Occupational Health Service   ,01-Mar-2023,BUPA HEALTH CLINICS                     ,435.32,Mar-23
EREWASH BOROUGH COUNCIL,22004,Cotmanhay Pavilion            ,Gas                           ,22-Mar-2023,CADENT GAS LTD                          ,"2,035.40",Mar-23
EREWASH BOROUGH COUNCIL,21464,Arts Development              ,Special Events                ,10-Feb-2023,CAN SAMBA                               ,350.00,Mar-23
EREWASH BOROUGH COUNCIL,20969,Planning                      ,External Property Works       ,09-Feb-2023,CANAL & RIVER TRUST                     ,"1,813.14",Mar-23
EREWASH BOROUGH COUNCIL,20767,Community Services            ,Stationery                    ,08-Feb-2023,CCS MEDIA LIMITED                       ,420.50,Mar-23
EREWASH BOROUGH COUNCIL,20767,Human Resources and ICT       ,Software and Implementation   ,08-Feb-2023,CCS MEDIA LIMITED                       ,252.30,Mar-23
EREWASH BOROUGH COUNCIL,21255,Human Resources               ,Legal Expenses                ,31-Jan-2023,CENTURION LEGAL                         ,288.00,Mar-23
EREWASH BOROUGH COUNCIL,21471,EBC Balance Sheet             ,Fuel Store                    ,22-Feb-2023,CERTAS ENERGY UK LIMITED T/A CARLTON FUE,"36,528.00",Mar-23
EREWASH BOROUGH COUNCIL,21658,Accountancy                   ,Subscriptions                 ,06-Mar-2023,CHARTERED INSTITUTE OF PUBLIC FINANCE & ,"4,035.00",Mar-23
EREWASH BOROUGH COUNCIL,20942,Revenues and Benefits         ,Software Licences             ,15-Feb-2023,CIVICA UK LIMITED                       ,"72,324.69",Mar-23
EREWASH BOROUGH COUNCIL,20942,Revenues and Benefits         ,Software Licences             ,15-Feb-2023,CIVICA UK LIMITED                       ,"8,000.00",Mar-23
EREWASH BOROUGH COUNCIL,21029,Housing Benefit Administration,Project Grants                ,20-Feb-2023,CIVICA UK LIMITED                       ,"7,825.00",Mar-23
EREWASH BOROUGH COUNCIL,21564,Development Control           ,Computer Software             ,15-Feb-2023,CIVICA UK LIMITED                       ,"16,510.00",Mar-23
EREWASH BOROUGH COUNCIL,21564,Building Control - Fee Earning,Computer Software             ,15-Feb-2023,CIVICA UK LIMITED                       ,"4,344.73",Mar-23
EREWASH BOROUGH COUNCIL,21564,Building Control - Fee Earning,Computer Software             ,15-Feb-2023,CIVICA UK LIMITED                       ,868.95,Mar-23
EREWASH BOROUGH COUNCIL,20724,ICT Support Services          ,Mobile Phones                 ,08-Feb-2023,CLASS AFFINITY PROJECTS LTD             ,"2,892.41",Mar-23
EREWASH BOROUGH COUNCIL,20566,Commissioned Projects         ,Fees Costs and Expenses       ,02-Feb-2023,COTMANHAY COMMUNITY NETWORK             ,315.00,Mar-23
EREWASH BOROUGH COUNCIL,21661,Erewash Museum                ,Advertising                   ,20-Jan-2023,COUNTY SIGNPOST                         ,275.00,Mar-23
EREWASH BOROUGH COUNCIL,20996,Commissioned Projects         ,Fees Costs and Expenses       ,31-Jan-2023,CYCLING UK                              ,918.00,Mar-23
EREWASH BOROUGH COUNCIL,21998,Homelessness Prevention       ,Spend to Save                 ,22-Mar-2023,REDACTED PERSONAL DATA,"1,237.50",Mar-23
EREWASH BOROUGH COUNCIL,20600,Trade Waste                   ,Repairs and Maintenance       ,02-Feb-2023,DENNIS EAGLE LTD                        ,951.65,Mar-23
EREWASH BOROUGH COUNCIL,20600,Trade Waste                   ,Repairs and Maintenance       ,02-Feb-2023,DENNIS EAGLE LTD                        ,261.94,Mar-23
EREWASH BOROUGH COUNCIL,21926,EBC Balance Sheet             ,NNDR Coll Fund Control Account,20-Mar-2023,"DEPT FOR LEVELLING UP,HOUSING&COMMUNITIE","859,667.00",Mar-23
EREWASH BOROUGH COUNCIL,21918,Non Domestic Rates Retention  ,NNDR Tariff                   ,20-Mar-2023,DERBY CITY COUNCIL                      ,"520,564.97",Mar-23
EREWASH BOROUGH COUNCIL,21416,Homelessness                  ,Contribution to Shared Service,01-Mar-2023,DERBY CITY COUNCIL                      ,"9,131.00",Mar-23
EREWASH BOROUGH COUNCIL,21657,Trade Waste                   ,Waste Disposal                ,07-Mar-2023,DERBYSHIRE COUNTY COUNCIL...            ,"53,239.80",Mar-23
EREWASH BOROUGH COUNCIL,21655,Trade Waste                   ,Waste Disposal                ,06-Mar-2023,DERBYSHIRE COUNTY COUNCIL...            ,"55,950.08",Mar-23
EREWASH BOROUGH COUNCIL,21656,Trade Waste                   ,Waste Disposal                ,07-Mar-2023,DERBYSHIRE COUNTY COUNCIL...            ,"57,495.41",Mar-23
EREWASH BOROUGH COUNCIL,21654,Contaminated Land             ,Site Investigations           ,08-Mar-2023,DERBYSHIRE COUNTY COUNCIL...            ,"1,139.64",Mar-23
EREWASH BOROUGH COUNCIL,22256,Planning Policy               ,Project Grants                ,28-Mar-2023,DERBYSHIRE COUNTY COUNCIL...            ,"35,843.14",Mar-23
EREWASH BOROUGH COUNCIL,21997,Compensation and Pensions     ,Compensatory Added Years      ,09-Mar-2023,DERBYSHIRE COUNTY COUNCIL...            ,"18,704.28",Mar-23
EREWASH BOROUGH COUNCIL,21229,EBC Balance Sheet             ,Payroll Coll Acc Superanuation,15-Mar-2023,DERBYSHIRE COUNTY COUNCIL...            ,"123,508.70",Mar-23
EREWASH BOROUGH COUNCIL,21229,EBC Balance Sheet             ,Payroll Coll Acc Superanuation,15-Mar-2023,DERBYSHIRE COUNTY COUNCIL...            ,"83,250.00",Mar-23
EREWASH BOROUGH COUNCIL,21910,Regulatory and Housing Service,Disabled Facilities Grant     ,24-Feb-2023,DERBYSHIRE COUNTY COUNCIL...            ,"6,021.66",Mar-23
EREWASH BOROUGH COUNCIL,22008,Regulatory and Housing Service,Disabled Facilities Grant     ,08-Feb-2023,DERBYSHIRE COUNTY COUNCIL...            ,"7,622.40",Mar-23
EREWASH BOROUGH COUNCIL,21909,Regulatory and Housing Service,Disabled Facilities Grant     ,12-Apr-2022,DERBYSHIRE COUNTY COUNCIL...            ,"15,285.20",Mar-23
EREWASH BOROUGH COUNCIL,22195,Homelessness Prevention       ,Contracted Services           ,21-Mar-2023,DERBYSHIRE DALES DISTRICT COUNCIL       ,"2,000.00",Mar-23
EREWASH BOROUGH COUNCIL,22000,Homelessness Prevention       ,Spend to Save                 ,17-Feb-2023,DERWENT LIVING                          ,548.51,Mar-23
EREWASH BOROUGH COUNCIL,22001,Homelessness Prevention       ,Spend to Save                 ,22-Mar-2023,DERWENT LIVING                          ,"1,097.02",Mar-23
EREWASH BOROUGH COUNCIL,21908,ICT Support Services          ,GIS Software Licences         ,23-Feb-2023,DOTTED EYES LTD                         ,340.00,Mar-23
EREWASH BOROUGH COUNCIL,21908,ICT Support Services          ,GIS Software Licences         ,23-Feb-2023,DOTTED EYES LTD                         ,350.00,Mar-23
EREWASH BOROUGH COUNCIL,21210,Green Space                   ,Materials and Consumables     ,21-Feb-2023,EAST RIDING HORTICULTURE LTD            ,252.00,Mar-23
EREWASH BOROUGH COUNCIL,21426,Parks Other Buildings         ,Bridge Repairs and Maintenance,28-Feb-2023,EASTWOOD & PARTNERS                     ,"1,150.00",Mar-23
EREWASH BOROUGH COUNCIL,21672,Arts Development              ,Subscriptions                 ,12-Feb-2023,EFFECTIVE SECURITY SERVICES LTD         ,255.00,Mar-23
EREWASH BOROUGH COUNCIL,21266,Play Areas                    ,Contracted Services           ,26-Feb-2023,ELLESMERE PLAYGROUND PRODUCTS           ,600.00,Mar-23
EREWASH BOROUGH COUNCIL,20584,Homelessness                  ,Leased Properties             ,01-Feb-2023,EMH HOMES                               ,"1,142.62",Mar-23
EREWASH BOROUGH COUNCIL,20585,Homelessness                  ,Leased Properties             ,01-Feb-2023,EMH HOMES                               ,"1,170.53",Mar-23
EREWASH BOROUGH COUNCIL,20583,Homelessness                  ,Leased Properties             ,01-Feb-2023,EMH HOMES                               ,"1,240.06",Mar-23
EREWASH BOROUGH COUNCIL,21053,EBC Balance Sheet             ,Payroll Coll Acc Labour Party ,21-Feb-2023,EREWASH LABOUR GROUP                    ,521.85,Mar-23
EREWASH BOROUGH COUNCIL,22215,EBC Balance Sheet             ,Payroll Coll Acc Labour Party ,28-Mar-2023,EREWASH LABOUR GROUP                    ,521.85,Mar-23
EREWASH BOROUGH COUNCIL,20628,Household Waste Collection    ,Hire Charges                  ,31-Jan-2023,EUROMUNICIPAL LTD                       ,380.00,Mar-23
EREWASH BOROUGH COUNCIL,20627,Household Waste Collection    ,Hire Charges                  ,31-Jan-2023,EUROMUNICIPAL LTD                       ,400.00,Mar-23
EREWASH BOROUGH COUNCIL,20812,Household Waste Collection    ,Bins                          ,10-Feb-2023,EXCEL COLOUR PRINT                      ,684.00,Mar-23
EREWASH BOROUGH COUNCIL,20574,Household Waste Collection    ,Agency Staff                  ,03-Feb-2023,EXTRA PERSONNEL LTD                     ,"4,175.45",Mar-23
EREWASH BOROUGH COUNCIL,20833,Household Waste Collection    ,Agency Staff                  ,10-Feb-2023,EXTRA PERSONNEL LTD                     ,"4,137.01",Mar-23
EREWASH BOROUGH COUNCIL,20572,Trade Waste                   ,Agency Staff                  ,03-Feb-2023,EXTRA PERSONNEL LTD                     ,590.52,Mar-23
EREWASH BOROUGH COUNCIL,21247,Trade Waste                   ,Agency Staff                  ,24-Feb-2023,EXTRA PERSONNEL LTD                     ,601.25,Mar-23
EREWASH BOROUGH COUNCIL,21435,Trade Waste                   ,Agency Staff                  ,03-Mar-2023,EXTRA PERSONNEL LTD                     ,544.38,Mar-23
EREWASH BOROUGH COUNCIL,20831,Trade Waste                   ,Agency Staff                  ,10-Feb-2023,EXTRA PERSONNEL LTD                     ,601.25,Mar-23
EREWASH BOROUGH COUNCIL,20574,Kerbside Recycling Collection ,Agency Staff                  ,03-Feb-2023,EXTRA PERSONNEL LTD                     ,"2,783.63",Mar-23
EREWASH BOROUGH COUNCIL,20833,Kerbside Recycling Collection ,Agency Staff                  ,10-Feb-2023,EXTRA PERSONNEL LTD                     ,"2,758.00",Mar-23
EREWASH BOROUGH COUNCIL,21185,Development Control           ,Agency Staff                  ,17-Feb-2023,EXTRA PERSONNEL LTD                     ,359.10,Mar-23
EREWASH BOROUGH COUNCIL,20570,Development Control           ,Agency Staff                  ,03-Feb-2023,EXTRA PERSONNEL LTD                     ,319.20,Mar-23
EREWASH BOROUGH COUNCIL,20571,Development Control           ,Agency Staff                  ,03-Feb-2023,EXTRA PERSONNEL LTD                     ,590.52,Mar-23
EREWASH BOROUGH COUNCIL,21246,Development Control           ,Agency Staff                  ,24-Feb-2023,EXTRA PERSONNEL LTD                     ,319.20,Mar-23
EREWASH BOROUGH COUNCIL,21252,Development Control           ,Agency Staff                  ,24-Feb-2023,EXTRA PERSONNEL LTD                     ,478.80,Mar-23
EREWASH BOROUGH COUNCIL,19655,Development Control           ,Agency Staff                  ,03-Jan-2023,EXTRA PERSONNEL LTD                     ,590.52,Mar-23
EREWASH BOROUGH COUNCIL,21433,Development Control           ,Agency Staff                  ,03-Mar-2023,EXTRA PERSONNEL LTD                     ,319.20,Mar-23
EREWASH BOROUGH COUNCIL,21434,Development Control           ,Agency Staff                  ,03-Mar-2023,EXTRA PERSONNEL LTD                     ,478.80,Mar-23
EREWASH BOROUGH COUNCIL,20829,Development Control           ,Agency Staff                  ,10-Feb-2023,EXTRA PERSONNEL LTD                     ,319.20,Mar-23
EREWASH BOROUGH COUNCIL,20830,Development Control           ,Agency Staff                  ,10-Feb-2023,EXTRA PERSONNEL LTD                     ,478.80,Mar-23
EREWASH BOROUGH COUNCIL,21180,Green Space                   ,Agency Staff                  ,17-Feb-2023,EXTRA PERSONNEL LTD                     ,"2,190.53",Mar-23
EREWASH BOROUGH COUNCIL,21179,Green Space                   ,Agency Staff                  ,17-Feb-2023,EXTRA PERSONNEL LTD                     ,"1,985.08",Mar-23
EREWASH BOROUGH COUNCIL,20576,Green Space                   ,Agency Staff                  ,03-Feb-2023,EXTRA PERSONNEL LTD                     ,"2,058.65",Mar-23
EREWASH BOROUGH COUNCIL,20577,Green Space                   ,Agency Staff                  ,03-Feb-2023,EXTRA PERSONNEL LTD                     ,"2,205.56",Mar-23
EREWASH BOROUGH COUNCIL,21251,Green Space                   ,Agency Staff                  ,24-Feb-2023,EXTRA PERSONNEL LTD                     ,"1,986.02",Mar-23
EREWASH BOROUGH COUNCIL,21250,Green Space                   ,Agency Staff                  ,24-Feb-2023,EXTRA PERSONNEL LTD                     ,"2,258.07",Mar-23
EREWASH BOROUGH COUNCIL,21439,Green Space                   ,Agency Staff                  ,03-Mar-2023,EXTRA PERSONNEL LTD                     ,"1,636.39",Mar-23
EREWASH BOROUGH COUNCIL,21440,Green Space                   ,Agency Staff                  ,03-Mar-2023,EXTRA PERSONNEL LTD                     ,"2,447.73",Mar-23
EREWASH BOROUGH COUNCIL,20835,Green Space                   ,Agency Staff                  ,10-Feb-2023,EXTRA PERSONNEL LTD                     ,"2,134.27",Mar-23
EREWASH BOROUGH COUNCIL,20836,Green Space                   ,Agency Staff                  ,10-Feb-2023,EXTRA PERSONNEL LTD                     ,"2,089.58",Mar-23
EREWASH BOROUGH COUNCIL,21179,Public Conveniences           ,Agency Staff                  ,17-Feb-2023,EXTRA PERSONNEL LTD                     ,500.00,Mar-23
EREWASH BOROUGH COUNCIL,20577,Public Conveniences           ,Agency Staff                  ,03-Feb-2023,EXTRA PERSONNEL LTD                     ,500.00,Mar-23
EREWASH BOROUGH COUNCIL,21250,Public Conveniences           ,Agency Staff                  ,24-Feb-2023,EXTRA PERSONNEL LTD                     ,500.00,Mar-23
EREWASH BOROUGH COUNCIL,21440,Public Conveniences           ,Agency Staff                  ,03-Mar-2023,EXTRA PERSONNEL LTD                     ,500.00,Mar-23
EREWASH BOROUGH COUNCIL,20836,Public Conveniences           ,Agency Staff                  ,10-Feb-2023,EXTRA PERSONNEL LTD                     ,500.00,Mar-23
EREWASH BOROUGH COUNCIL,21180,Street Scene                  ,Agency Staff                  ,17-Feb-2023,EXTRA PERSONNEL LTD                     ,"2,190.52",Mar-23
EREWASH BOROUGH COUNCIL,21179,Street Scene                  ,Agency Staff                  ,17-Feb-2023,EXTRA PERSONNEL LTD                     ,"1,985.08",Mar-23
EREWASH BOROUGH COUNCIL,20576,Street Scene                  ,Agency Staff                  ,03-Feb-2023,EXTRA PERSONNEL LTD                     ,"2,058.64",Mar-23
EREWASH BOROUGH COUNCIL,20577,Street Scene                  ,Agency Staff                  ,03-Feb-2023,EXTRA PERSONNEL LTD                     ,"2,205.55",Mar-23
EREWASH BOROUGH COUNCIL,21251,Street Scene                  ,Agency Staff                  ,24-Feb-2023,EXTRA PERSONNEL LTD                     ,"1,986.02",Mar-23
EREWASH BOROUGH COUNCIL,21250,Street Scene                  ,Agency Staff                  ,24-Feb-2023,EXTRA PERSONNEL LTD                     ,"2,258.06",Mar-23
EREWASH BOROUGH COUNCIL,21439,Street Scene                  ,Agency Staff                  ,03-Mar-2023,EXTRA PERSONNEL LTD                     ,"1,636.38",Mar-23
EREWASH BOROUGH COUNCIL,21440,Street Scene                  ,Agency Staff                  ,03-Mar-2023,EXTRA PERSONNEL LTD                     ,"2,447.72",Mar-23
EREWASH BOROUGH COUNCIL,20835,Street Scene                  ,Agency Staff                  ,10-Feb-2023,EXTRA PERSONNEL LTD                     ,"2,134.26",Mar-23
EREWASH BOROUGH COUNCIL,20836,Street Scene                  ,Agency Staff                  ,10-Feb-2023,EXTRA PERSONNEL LTD                     ,"2,089.57",Mar-23
EREWASH BOROUGH COUNCIL,21181,Long Eaton Market             ,Agency Staff                  ,17-Feb-2023,EXTRA PERSONNEL LTD                     ,271.44,Mar-23
EREWASH BOROUGH COUNCIL,21249,Long Eaton Market             ,Agency Staff                  ,24-Feb-2023,EXTRA PERSONNEL LTD                     ,239.77,Mar-23
EREWASH BOROUGH COUNCIL,21438,Long Eaton Market             ,Agency Staff                  ,03-Mar-2023,EXTRA PERSONNEL LTD                     ,271.44,Mar-23
EREWASH BOROUGH COUNCIL,20834,Long Eaton Market             ,Agency Staff                  ,10-Feb-2023,EXTRA PERSONNEL LTD                     ,271.44,Mar-23
EREWASH BOROUGH COUNCIL,21181,Ilkeston Market               ,Agency Staff                  ,17-Feb-2023,EXTRA PERSONNEL LTD                     ,180.96,Mar-23
EREWASH BOROUGH COUNCIL,21249,Ilkeston Market               ,Agency Staff                  ,24-Feb-2023,EXTRA PERSONNEL LTD                     ,159.85,Mar-23
EREWASH BOROUGH COUNCIL,21438,Ilkeston Market               ,Agency Staff                  ,03-Mar-2023,EXTRA PERSONNEL LTD                     ,180.96,Mar-23
EREWASH BOROUGH COUNCIL,20834,Ilkeston Market               ,Agency Staff                  ,10-Feb-2023,EXTRA PERSONNEL LTD                     ,180.96,Mar-23
EREWASH BOROUGH COUNCIL,21248,Civic Accommodation Ilkeston  ,Agency Staff                  ,24-Feb-2023,EXTRA PERSONNEL LTD                     ,322.77,Mar-23
EREWASH BOROUGH COUNCIL,21238,Commissioned Projects         ,Training                      ,27-Feb-2023,FP TRAINING LIMITED                     ,400.00,Mar-23
EREWASH BOROUGH COUNCIL,21239,EBC Balance Sheet             ,Fuel Store                    ,27-Feb-2023,FUEL LINK SYSTEMS                       ,525.00,Mar-23
EREWASH BOROUGH COUNCIL,20504,Homelessness                  ,Leased Properties             ,01-Jan-2023,FUTURES HOMESCAPE LTD                   ,"1,141.75",Mar-23
EREWASH BOROUGH COUNCIL,21429,Homelessness                  ,Spend to Save                 ,07-Mar-2023,G2M CAPITAL LIMITED                     ,"1,934.17",Mar-23
EREWASH BOROUGH COUNCIL,20827,Kerbside Recycling Collection ,Waste Disposal                ,31-Jan-2023,GAE SMITH HOLDINGS T/A CASEPAK          ,"55,415.61",Mar-23
EREWASH BOROUGH COUNCIL,20828,Kerbside Recycling Collection ,Waste Disposal                ,31-Jan-2023,GAE SMITH HOLDINGS T/A CASEPAK          ,507.70,Mar-23
EREWASH BOROUGH COUNCIL,21746,Kerbside Recycling Collection ,Waste Disposal                ,28-Feb-2023,GAE SMITH HOLDINGS T/A CASEPAK          ,360.91,Mar-23
EREWASH BOROUGH COUNCIL,21745,Kerbside Recycling Collection ,Waste Disposal                ,28-Feb-2023,GAE SMITH HOLDINGS T/A CASEPAK          ,"37,797.81",Mar-23
EREWASH BOROUGH COUNCIL,22205,Planning                      ,Structural Property Works     ,14-Feb-2023,GAGARIN STUDIO                          ,"9,500.00",Mar-23
EREWASH BOROUGH COUNCIL,22206,Planning                      ,Structural Property Works     ,14-Feb-2023,GAGARIN STUDIO                          ,"15,500.00",Mar-23
EREWASH BOROUGH COUNCIL,21241,Household Waste Collection    ,Bins                          ,20-Feb-2023,REDACTED PERSONAL DATA,251.85,Mar-23
EREWASH BOROUGH COUNCIL,21420,Arts Development              ,Special Events                ,11-Feb-2023,REDACTED PERSONAL DATA,300.00,Mar-23
EREWASH BOROUGH COUNCIL,21957,Play Areas                    ,Materials and Consumables     ,20-Sep-2022,HAGSSMP                                 ,348.00,Mar-23
EREWASH BOROUGH COUNCIL,21575,Democratic Representation     ,Hire Charges                  ,08-Mar-2023,HALL'S TRAVEL                           ,320.00,Mar-23
EREWASH BOROUGH COUNCIL,21446,Transport Trading Account     ,Maintenance of Equipment      ,31-Jan-2023,HAROLD POTTER LIMITED                   ,735.00,Mar-23
EREWASH BOROUGH COUNCIL,21651,Public Conveniences           ,Materials and Consumables     ,20-Feb-2023,HB INSULATIONS                          ,300.00,Mar-23
EREWASH BOROUGH COUNCIL,21391,Human Resources               ,Apprenticeship Levy           ,20-Mar-2023,HMRC CUMBERNAULD                        ,"2,146.00",Mar-23
EREWASH BOROUGH COUNCIL,21391,Human Resources               ,Apprenticeship Levy           ,20-Mar-2023,HMRC CUMBERNAULD                        ,"1,250.00",Mar-23
EREWASH BOROUGH COUNCIL,21389,EBC Balance Sheet             ,Payroll Coll Acc - Income Tax ,20-Mar-2023,HMRC CUMBERNAULD                        ,380.20,Mar-23
EREWASH BOROUGH COUNCIL,21391,EBC Balance Sheet             ,Payroll Coll Acc - Income Tax ,20-Mar-2023,HMRC CUMBERNAULD                        ,"75,513.75",Mar-23
EREWASH BOROUGH COUNCIL,21389,EBC Balance Sheet             ,Payroll Coll Acc National Ins ,20-Mar-2023,HMRC CUMBERNAULD                        ,426.80,Mar-23
EREWASH BOROUGH COUNCIL,21391,EBC Balance Sheet             ,Payroll Coll Acc National Ins ,20-Mar-2023,HMRC CUMBERNAULD                        ,"98,239.12",Mar-23
EREWASH BOROUGH COUNCIL,21391,EBC Balance Sheet             ,Payroll Coll Acc Student Loan ,20-Mar-2023,HMRC CUMBERNAULD                        ,"1,523.00",Mar-23
EREWASH BOROUGH COUNCIL,20394,Development Control           ,Consultants Fees              ,31-Jan-2023,IDOM MEREBROOK LTD                      ,330.00,Mar-23
EREWASH BOROUGH COUNCIL,21586,Non-domestic Rates Collection ,Fees Costs and Expenses       ,08-Mar-2023,INFORM CPI LTD                          ,376.00,Mar-23
EREWASH BOROUGH COUNCIL,21005,Non-domestic Rates Collection ,Fees Costs and Expenses       ,15-Feb-2023,INFORM CPI LTD                          ,448.00,Mar-23
EREWASH BOROUGH COUNCIL,21212,Non-domestic Rates Collection ,Fees Costs and Expenses       ,27-Feb-2023,INFORM CPI LTD                          ,"12,660.00",Mar-23
EREWASH BOROUGH COUNCIL,21036,Economic Development          ,Project Grants                ,20-Feb-2023,INFORMATION BY DESIGN                   ,"1,500.00",Mar-23
EREWASH BOROUGH COUNCIL,21219,Economic Development          ,Project Grants                ,23-Feb-2023,INFORMATION BY DESIGN                   ,"6,912.50",Mar-23
EREWASH BOROUGH COUNCIL,21219,Shared Prosperity             ,Project Grants                ,23-Feb-2023,INFORMATION BY DESIGN                   ,"2,962.50",Mar-23
EREWASH BOROUGH COUNCIL,20561,Human Resources               ,Software Licences             ,31-Jan-2023,INSIGHT DIRECT (UK) LTD                 ,"6,487.68",Mar-23
EREWASH BOROUGH COUNCIL,20953,Household Waste Collection    ,Bins                          ,14-Feb-2023,INTERNATIONAL PARKING SYSTEMS UK LTD    ,695.00,Mar-23
EREWASH BOROUGH COUNCIL,20953,Car Parking                   ,General Equipment             ,14-Feb-2023,INTERNATIONAL PARKING SYSTEMS UK LTD    ,450.00,Mar-23
EREWASH BOROUGH COUNCIL,20509,Car Parking                   ,Civil Parking Enforcement     ,31-Jan-2023,INTERNATIONAL PARKING SYSTEMS UK LTD    ,"2,995.04",Mar-23
EREWASH BOROUGH COUNCIL,21360,Car Parking                   ,Credit/Debit Card Charges     ,02-Feb-2023,INTERNATIONAL PARKING SYSTEMS UK LTD    ,"3,112.44",Mar-23
EREWASH BOROUGH COUNCIL,21237,Kerbside Recycling Collection ,General Equipment             ,24-Feb-2023,J & HM DICKSON LTD                      ,"5,450.00",Mar-23
EREWASH BOROUGH COUNCIL,22179,ICT Support Services          ,Software Licences             ,25-Mar-2023,JIGSAW BUSINESS NETWORKS LTD            ,"2,075.00",Mar-23
EREWASH BOROUGH COUNCIL,21206,Green Space                   ,Contracted Services           ,21-Feb-2023,KEEP BRITAIN TIDY                       ,493.00,Mar-23
EREWASH BOROUGH COUNCIL,21206,Green Space                   ,Contracted Services           ,21-Feb-2023,KEEP BRITAIN TIDY                       ,369.00,Mar-23
EREWASH BOROUGH COUNCIL,21204,Trees Hedges Local Nature Res ,Contracted Services           ,21-Feb-2023,KEEP BRITAIN TIDY                       ,369.00,Mar-23
EREWASH BOROUGH COUNCIL,21204,Trees Hedges Local Nature Res ,Contracted Services           ,21-Feb-2023,KEEP BRITAIN TIDY                       ,369.00,Mar-23
EREWASH BOROUGH COUNCIL,21205,Street Scene                  ,Street Furniture              ,21-Feb-2023,KEEP BRITAIN TIDY                       ,424.00,Mar-23
EREWASH BOROUGH COUNCIL,21386,EBC Balance Sheet             ,Childcare Salary Sacrifice    ,03-Mar-2023,KIDDIVOUCHERS LTD                       ,568.00,Mar-23
EREWASH BOROUGH COUNCIL,20388,Front Line Support Services   ,Security                      ,31-Jan-2023,KINGS ARMOURED SECURITY SERVICES        ,495.00,Mar-23
EREWASH BOROUGH COUNCIL,21356,Front Line Support Services   ,Security                      ,28-Feb-2023,KINGS ARMOURED SECURITY SERVICES        ,492.50,Mar-23
EREWASH BOROUGH COUNCIL,20390,Car Parking                   ,Contracted Services           ,31-Jan-2023,KINGS ARMOURED SECURITY SERVICES        ,"1,592.10",Mar-23
EREWASH BOROUGH COUNCIL,21358,Car Parking                   ,Contracted Services           ,28-Feb-2023,KINGS ARMOURED SECURITY SERVICES        ,"1,415.20",Mar-23
EREWASH BOROUGH COUNCIL,20609,Commissioned Projects         ,General Equipment             ,02-Feb-2023,KIRK HALLAM COMMUNITY HALL ASSOCIATION. ,"1,000.00",Mar-23
EREWASH BOROUGH COUNCIL,22006,Building Control - Fee Earning,Subscriptions                 ,27-Feb-2023,LABC EAST MIDLANDS REGION               ,590.00,Mar-23
EREWASH BOROUGH COUNCIL,22270,Street Scene                  ,Hire Charges                  ,09-Jan-2023,Land Train Hire Nationwide              ,795.00,Mar-23
EREWASH BOROUGH COUNCIL,21479,Green Space                   ,Materials and Consumables     ,06-Mar-2023,LBS WORLDWIDE LTD                       ,326.02,Mar-23
EREWASH BOROUGH COUNCIL,21078,Training - HR Only            ,E Learning                    ,21-Feb-2023,LEARNING POOL LTD                       ,"8,290.00",Mar-23
EREWASH BOROUGH COUNCIL,20362,Commissioned Projects         ,Fees Costs and Expenses       ,31-Jan-2023,LEGACY LEISURE LTD                      ,"1,194.00",Mar-23
EREWASH BOROUGH COUNCIL,21253,Commissioned Projects         ,Fees Costs and Expenses       ,28-Feb-2023,LEGACY LEISURE LTD                      ,"1,671.00",Mar-23
EREWASH BOROUGH COUNCIL,21889,ICT Support Services          ,Software Licences             ,01-Feb-2023,LEGAL ESCROW & ARBITRATION SERVICES LIMI,575.00,Mar-23
EREWASH BOROUGH COUNCIL,20950,Christmas Lights              ,Planned Preventative Maintenan,15-Feb-2023,LEISURE LITES LIMTED                    ,"14,515.72",Mar-23
EREWASH BOROUGH COUNCIL,20950,Christmas Lights              ,Reactive Maintenance          ,15-Feb-2023,LEISURE LITES LIMTED                    ,"2,785.00",Mar-23
EREWASH BOROUGH COUNCIL,20951,Christmas Lights              ,PPM Mechanical and Equipment  ,15-Feb-2023,LEISURE LITES LIMTED                    ,"1,273.75",Mar-23
EREWASH BOROUGH COUNCIL,20950,Christmas Lights              ,PPM Mechanical and Equipment  ,15-Feb-2023,LEISURE LITES LIMTED                    ,792.68,Mar-23
EREWASH BOROUGH COUNCIL,20768,Treasury and Bank Charges     ,Consultants Fees              ,02-Feb-2023,LINK GROUP                              ,"8,750.00",Mar-23
EREWASH BOROUGH COUNCIL,22091,Treasury and Bank Charges     ,Bank Charges                  ,13-Mar-2023,LLOYDS BANK PLC                         ,477.65,Mar-23
EREWASH BOROUGH COUNCIL,21599,EBC Balance Sheet             ,Lloyds Credit Card Suspense   ,02-Mar-2023,LLOYDS BANK PLC                         ,604.42,Mar-23
EREWASH BOROUGH COUNCIL,21599,EBC Balance Sheet             ,Lloyds Credit Card Suspense   ,02-Mar-2023,LLOYDS BANK PLC                         ,"1,639.43",Mar-23
EREWASH BOROUGH COUNCIL,21587,EBC Balance Sheet             ,Lloyds Credit Card Suspense   ,09-Mar-2023,LLOYDS BANK PLC                         ,"5,431.51",Mar-23
EREWASH BOROUGH COUNCIL,20378,Household Waste Collection    ,Tyres                         ,31-Jan-2023,LODGE TYRE COMPANY LTD                  ,"2,369.00",Mar-23
EREWASH BOROUGH COUNCIL,21257,Household Waste Collection    ,Tyres                         ,28-Feb-2023,LODGE TYRE COMPANY LTD                  ,928.50,Mar-23
EREWASH BOROUGH COUNCIL,21257,Trade Waste                   ,Tyres                         ,28-Feb-2023,LODGE TYRE COMPANY LTD                  ,514.00,Mar-23
EREWASH BOROUGH COUNCIL,20378,Kerbside Recycling Collection ,Tyres                         ,31-Jan-2023,LODGE TYRE COMPANY LTD                  ,"3,149.45",Mar-23
EREWASH BOROUGH COUNCIL,21257,Kerbside Recycling Collection ,Tyres                         ,28-Feb-2023,LODGE TYRE COMPANY LTD                  ,907.95,Mar-23
EREWASH BOROUGH COUNCIL,20378,Green Space                   ,Tyres                         ,31-Jan-2023,LODGE TYRE COMPANY LTD                  ,952.60,Mar-23
EREWASH BOROUGH COUNCIL,21257,Green Space                   ,Tyres                         ,28-Feb-2023,LODGE TYRE COMPANY LTD                  ,710.30,Mar-23
EREWASH BOROUGH COUNCIL,20378,Street Scene                  ,Tyres                         ,31-Jan-2023,LODGE TYRE COMPANY LTD                  ,677.50,Mar-23
EREWASH BOROUGH COUNCIL,21257,Street Scene                  ,Tyres                         ,28-Feb-2023,LODGE TYRE COMPANY LTD                  ,429.50,Mar-23
EREWASH BOROUGH COUNCIL,20378,Dog Control                   ,Tyres                         ,31-Jan-2023,LODGE TYRE COMPANY LTD                  ,101.20,Mar-23
EREWASH BOROUGH COUNCIL,20378,Neighbourhood Wardens         ,Tyres                         ,31-Jan-2023,LODGE TYRE COMPANY LTD                  ,101.20,Mar-23
EREWASH BOROUGH COUNCIL,21449,Accountancy                   ,Agency Staff                  ,05-Mar-2023,MACILDOWIE RECRUITMENT EXPERTISE        ,"1,238.39",Mar-23
EREWASH BOROUGH COUNCIL,21072,Accountancy                   ,Agency Staff                  ,19-Feb-2023,MACILDOWIE RECRUITMENT EXPERTISE        ,744.71,Mar-23
EREWASH BOROUGH COUNCIL,22007,Accountancy                   ,Agency Staff                  ,19-Mar-2023,MACILDOWIE RECRUITMENT EXPERTISE        ,"1,137.98",Mar-23
EREWASH BOROUGH COUNCIL,22003,Accountancy                   ,Agency Staff                  ,19-Mar-2023,MACILDOWIE RECRUITMENT EXPERTISE        ,"1,238.39",Mar-23
EREWASH BOROUGH COUNCIL,21407,Accountancy                   ,Agency Staff                  ,26-Feb-2023,MACILDOWIE RECRUITMENT EXPERTISE        ,962.26,Mar-23
EREWASH BOROUGH COUNCIL,22204,Development Control           ,Consultants Fees              ,25-Jan-2023,REDACTED PERSONAL DATA,661.25,Mar-23
EREWASH BOROUGH COUNCIL,20725,Building Control - Fee Earning,Agency Staff                  ,09-Feb-2023,MATCHTECH GROUP (UK) LIMITED            ,825.00,Mar-23
EREWASH BOROUGH COUNCIL,20730,Building Control - Fee Earning,Agency Staff                  ,09-Feb-2023,MATCHTECH GROUP (UK) LIMITED            ,990.00,Mar-23
EREWASH BOROUGH COUNCIL,20727,Building Control - Fee Earning,Agency Staff                  ,09-Feb-2023,MATCHTECH GROUP (UK) LIMITED            ,"1,567.50",Mar-23
EREWASH BOROUGH COUNCIL,20958,Building Control - Fee Earning,Agency Staff                  ,16-Feb-2023,MATCHTECH GROUP (UK) LIMITED            ,825.00,Mar-23
EREWASH BOROUGH COUNCIL,20961,Building Control - Fee Earning,Agency Staff                  ,16-Feb-2023,MATCHTECH GROUP (UK) LIMITED            ,990.00,Mar-23
EREWASH BOROUGH COUNCIL,20959,Building Control - Fee Earning,Agency Staff                  ,16-Feb-2023,MATCHTECH GROUP (UK) LIMITED            ,"1,540.00",Mar-23
EREWASH BOROUGH COUNCIL,21169,Building Control - Fee Earning,Agency Staff                  ,23-Feb-2023,MATCHTECH GROUP (UK) LIMITED            ,825.00,Mar-23
EREWASH BOROUGH COUNCIL,21171,Building Control - Fee Earning,Agency Staff                  ,23-Feb-2023,MATCHTECH GROUP (UK) LIMITED            ,990.00,Mar-23
EREWASH BOROUGH COUNCIL,21172,Building Control - Fee Earning,Agency Staff                  ,23-Feb-2023,MATCHTECH GROUP (UK) LIMITED            ,"1,650.00",Mar-23
EREWASH BOROUGH COUNCIL,20492,Building Control - Fee Earning,Agency Staff                  ,02-Feb-2023,MATCHTECH GROUP (UK) LIMITED            ,825.00,Mar-23
EREWASH BOROUGH COUNCIL,20490,Building Control - Fee Earning,Agency Staff                  ,02-Feb-2023,MATCHTECH GROUP (UK) LIMITED            ,990.00,Mar-23
EREWASH BOROUGH COUNCIL,20495,Building Control - Fee Earning,Agency Staff                  ,02-Feb-2023,MATCHTECH GROUP (UK) LIMITED            ,"1,650.00",Mar-23
EREWASH BOROUGH COUNCIL,21365,Building Control - Fee Earning,Agency Staff                  ,02-Mar-2023,MATCHTECH GROUP (UK) LIMITED            ,825.00,Mar-23
EREWASH BOROUGH COUNCIL,21364,Building Control - Fee Earning,Agency Staff                  ,02-Mar-2023,MATCHTECH GROUP (UK) LIMITED            ,990.00,Mar-23
EREWASH BOROUGH COUNCIL,21361,Building Control - Fee Earning,Agency Staff                  ,02-Mar-2023,MATCHTECH GROUP (UK) LIMITED            ,"1,622.50",Mar-23
EREWASH BOROUGH COUNCIL,20739,Property and Estates          ,Repairs and Maintenance       ,10-Feb-2023,MDB PLUMBING (NOTTM) LTD                ,383.14,Mar-23
EREWASH BOROUGH COUNCIL,20740,Property and Estates          ,Repairs and Maintenance       ,10-Feb-2023,MDB PLUMBING (NOTTM) LTD                ,603.11,Mar-23
EREWASH BOROUGH COUNCIL,20746,Parks Changing Rooms          ,PPM Mechanical and Equipment  ,10-Feb-2023,MDB PLUMBING (NOTTM) LTD                ,456.38,Mar-23
EREWASH BOROUGH COUNCIL,20745,Flamsteed Centre - Ilkeston   ,PPM Mechanical and Equipment  ,10-Feb-2023,MDB PLUMBING (NOTTM) LTD                ,381.64,Mar-23
EREWASH BOROUGH COUNCIL,20861,Occupational Health & Welfare ,Occupational Health Service   ,03-Feb-2023,MEDIGOLD HEALTH CONSULTANCY LIMITED     ,"1,286.00",Mar-23
EREWASH BOROUGH COUNCIL,21474,Occupational Health & Welfare ,Occupational Health Service   ,02-Mar-2023,MEDIGOLD HEALTH CONSULTANCY LIMITED     ,863.00,Mar-23
EREWASH BOROUGH COUNCIL,20806,Property and Estates          ,External Property Works       ,31-Jan-2023,MIDLAND ROOFING SERVICES  (DERBY) LTD   ,"23,946.90",Mar-23
EREWASH BOROUGH COUNCIL,21469,Property and Estates          ,External Property Works       ,28-Feb-2023,MIDLAND ROOFING SERVICES  (DERBY) LTD   ,"47,220.38",Mar-23
EREWASH BOROUGH COUNCIL,20637,Street Scene                  ,Repairs and Maintenance       ,06-Feb-2023,MOTUS COMMERCIALS                       ,320.35,Mar-23
EREWASH BOROUGH COUNCIL,21015,Homelessness                  ,Homelessness Prevention Grant ,16-Feb-2023,NORTH EAST DERBYSHIRE DISTRICT COUNCIL. ,"2,597.22",Mar-23
EREWASH BOROUGH COUNCIL,20550,West Park Nursery             ,PPM Mechanical and Equipment  ,31-Jan-2023,NORWOOD ELECTRICAL UK LTD               ,465.40,Mar-23
EREWASH BOROUGH COUNCIL,22212,Human Resources               ,Recruitment Expenses          ,22-Mar-2023,NOTTINGHAM CITY COUNCIL                 ,"1,470.00",Mar-23
EREWASH BOROUGH COUNCIL,22212,Human Resources               ,Recruitment Expenses          ,22-Mar-2023,NOTTINGHAM CITY COUNCIL                 ,"3,920.00",Mar-23
EREWASH BOROUGH COUNCIL,20472,Infec Disease & Food Poisoning,Contracted Services           ,01-Feb-2023,OYSTER PARTNERSHIP LTD                  ,539.78,Mar-23
EREWASH BOROUGH COUNCIL,20256,Infec Disease & Food Poisoning,Contracted Services           ,25-Jan-2023,OYSTER PARTNERSHIP LTD                  ,553.34,Mar-23
EREWASH BOROUGH COUNCIL,20055,Infec Disease & Food Poisoning,Contracted Services           ,18-Jan-2023,OYSTER PARTNERSHIP LTD                  ,608.28,Mar-23
EREWASH BOROUGH COUNCIL,20718,Infec Disease & Food Poisoning,Contracted Services           ,08-Feb-2023,OYSTER PARTNERSHIP LTD                  ,611.96,Mar-23
EREWASH BOROUGH COUNCIL,20941,Infec Disease & Food Poisoning,Contracted Services           ,15-Feb-2023,OYSTER PARTNERSHIP LTD                  ,593.80,Mar-23
EREWASH BOROUGH COUNCIL,21163,Infec Disease & Food Poisoning,Contracted Services           ,22-Feb-2023,OYSTER PARTNERSHIP LTD                  ,616.10,Mar-23
EREWASH BOROUGH COUNCIL,21359,Infec Disease & Food Poisoning,Contracted Services           ,01-Mar-2023,OYSTER PARTNERSHIP LTD                  ,614.72,Mar-23
EREWASH BOROUGH COUNCIL,22005,Environmental Protection Act  ,Work In Default               ,01-Mar-2023,P G BOSWORTH LIMITED                    ,"1,250.00",Mar-23
EREWASH BOROUGH COUNCIL,21415,Household Waste Collection    ,Repairs and Maintenance       ,23-Feb-2023,P S MARSDEN (LAWNMOWER SERVCIES) LTD    ,"3,295.73",Mar-23
EREWASH BOROUGH COUNCIL,21385,Leisure Services              ,Contracted Services           ,20-Feb-2023,PARKWOOD LEISURE LTD                    ,"27,302.61",Mar-23
EREWASH BOROUGH COUNCIL,21385,Leisure Services              ,Contracted Services           ,20-Feb-2023,PARKWOOD LEISURE LTD                    ,"27,884.40",Mar-23
EREWASH BOROUGH COUNCIL,21972,Leisure Services              ,Contracted Services           ,20-Mar-2023,PARKWOOD LEISURE LTD                    ,"27,884.40",Mar-23
EREWASH BOROUGH COUNCIL,21048,EBC Balance Sheet             ,EBC Fit for Work Scheme       ,21-Feb-2023,PARKWOOD LEISURE LTD                    ,464.00,Mar-23
EREWASH BOROUGH COUNCIL,22217,EBC Balance Sheet             ,EBC Fit for Work Scheme       ,28-Mar-2023,PARKWOOD LEISURE LTD                    ,493.00,Mar-23
EREWASH BOROUGH COUNCIL,21458,Household Waste Collection    ,Repairs and Maintenance       ,06-Mar-2023,PARTIC MOTOR SPARES LTD                 ,265.00,Mar-23
EREWASH BOROUGH COUNCIL,21903,Treasury and Bank Charges     ,Credit/Debit Card Charges     ,15-Mar-2023,PAY 360 LIMITED (CAPITA)                ,"3,872.60",Mar-23
EREWASH BOROUGH COUNCIL,21191,Urban Renewal                 ,Other Grants                  ,24-Feb-2023,REDACTED PERSONAL DATA,275.00,Mar-23
EREWASH BOROUGH COUNCIL,21025,Homelessness Prevention       ,Other Grants                  ,20-Feb-2023,REDACTED PERSONAL DATA,406.02,Mar-23
EREWASH BOROUGH COUNCIL,21375,Community Grants              ,Project Grants                ,02-Mar-2023,THE ELKA PROJECT ILKESTON,300.00,Mar-23
EREWASH BOROUGH COUNCIL,21376,Community Grants              ,Project Grants                ,02-Mar-2023,FRIENDS OF STRAWS BRIDGE,294.12,Mar-23
EREWASH BOROUGH COUNCIL,21377,Community Grants              ,Project Grants                ,02-Mar-2023,LONG EATON MESS COLLECTORS,414.95,Mar-23
EREWASH BOROUGH COUNCIL,21378,Community Grants              ,Project Grants                ,02-Mar-2023,MORLEY SCHOOL ASSOCIATION,300.00,Mar-23
EREWASH BOROUGH COUNCIL,22277,Community Grants              ,Grants and Subscriptions      ,29-Mar-2023,REDACTED PERSONAL DATA,350.00,Mar-23
EREWASH BOROUGH COUNCIL,21601,EBC Balance Sheet             ,Cashiers Suspense             ,10-Mar-2023,GRANGE ROOFING LTD,"2,313.97",Mar-23
EREWASH BOROUGH COUNCIL,21214,Planning                      ,Structural Property Works     ,22-Feb-2023,PEAK ECOLOGY LTD                        ,"1,838.00",Mar-23
EREWASH BOROUGH COUNCIL,21425,Household Waste Collection    ,Bins                          ,02-Mar-2023,PEEL ELECTRICAL LTD                     ,335.40,Mar-23
EREWASH BOROUGH COUNCIL,20821,Property and Estates          ,Repairs and Maintenance       ,14-Feb-2023,PEEL ELECTRICAL LTD                     ,532.34,Mar-23
EREWASH BOROUGH COUNCIL,20515,Property and Estates          ,Repairs and Maintenance       ,02-Feb-2023,PEEL ELECTRICAL LTD                     ,"1,127.76",Mar-23
EREWASH BOROUGH COUNCIL,21485,,,08-Mar-2023,PENHAM EXCEL LIMITED                    ,517.22,Mar-23
EREWASH BOROUGH COUNCIL,21225,,,20-Feb-2023,PENHAM EXCEL LIMITED                    ,546.10,Mar-23
EREWASH BOROUGH COUNCIL,21677,,,13-Mar-2023,PENHAM EXCEL LIMITED                    ,682.08,Mar-23
EREWASH BOROUGH COUNCIL,22303,Regulatory and Housing Service,Vehicles                      ,08-Feb-2023,PERRYS                                  ,"34,132.85",Mar-23
EREWASH BOROUGH COUNCIL,22303,Regulatory and Housing Service,Vehicles                      ,08-Feb-2023,PERRYS                                  ,345.00,Mar-23
EREWASH BOROUGH COUNCIL,21676,Civic Transport               ,Hire Charges                  ,28-Feb-2023,PINNACLE EXECUTIVE CARS LIMITED         ,844.00,Mar-23
EREWASH BOROUGH COUNCIL,20964,Erewash Museum                ,Conservation                  ,13-Feb-2023,PRESERVATION EQUIPMENT LTD              ,385.00,Mar-23
EREWASH BOROUGH COUNCIL,21271,Economic Development          ,Contracted Services           ,01-Mar-2023,PROXIMITY FUTURES T/A ELEPHANT WIFI     ,303.33,Mar-23
EREWASH BOROUGH COUNCIL,21050,EBC Balance Sheet             ,Payroll Coll Acc - AVCS       ,21-Feb-2023,PRUDENTIAL                              ,896.00,Mar-23
EREWASH BOROUGH COUNCIL,22219,EBC Balance Sheet             ,Payroll Coll Acc - AVCS       ,28-Mar-2023,PRUDENTIAL                              ,921.00,Mar-23
EREWASH BOROUGH COUNCIL,21453,Economic Development          ,Project Grants                ,28-Feb-2023,PS TAX                                  ,"3,375.00",Mar-23
EREWASH BOROUGH COUNCIL,20567,Trees Hedges Local Nature Res ,Contracted Services           ,31-Jan-2023,RA INFORMATION SYSTEMS                  ,"3,256.00",Mar-23
EREWASH BOROUGH COUNCIL,20557,Trees Hedges Local Nature Res ,Contracted Services           ,31-Jan-2023,RAMMSANDERSON ECOLOGY LTD               ,"1,036.00",Mar-23
EREWASH BOROUGH COUNCIL,21805,"Police, Crime Commissioner Com",Project Grants                ,14-Mar-2023,REDVISION CCTV LIMITED                  ,"32,966.52",Mar-23
EREWASH BOROUGH COUNCIL,21192,Building Control - Fee Earning,Agency Staff                  ,17-Feb-2023,REED SPECIALIST RECRUITMENT LTD         ,829.17,Mar-23
EREWASH BOROUGH COUNCIL,20755,Building Control - Fee Earning,Agency Staff                  ,03-Feb-2023,REED SPECIALIST RECRUITMENT LTD         ,690.42,Mar-23
EREWASH BOROUGH COUNCIL,21396,Building Control - Fee Earning,Agency Staff                  ,24-Feb-2023,REED SPECIALIST RECRUITMENT LTD         ,829.17,Mar-23
EREWASH BOROUGH COUNCIL,21626,Building Control - Fee Earning,Agency Staff                  ,03-Mar-2023,REED SPECIALIST RECRUITMENT LTD         ,829.17,Mar-23
EREWASH BOROUGH COUNCIL,21193,Building Control - Fee Earning,Agency Staff                  ,10-Feb-2023,REED SPECIALIST RECRUITMENT LTD         ,821.77,Mar-23
EREWASH BOROUGH COUNCIL,21452,Community Services            ,Reference Literature and Publi,02-Mar-2023,RICARDO-AEA LTD                         ,"1,845.00",Mar-23
EREWASH BOROUGH COUNCIL,21650,Public Conveniences           ,Materials and Consumables     ,22-Feb-2022,RISLEY CROPS CONSULTANTS LTD            ,500.00,Mar-23
EREWASH BOROUGH COUNCIL,21260,Communications                ,Publicity and Promotion       ,01-Mar-2023,ROYAL MAIL GROUP LTD.                   ,"4,782.52",Mar-23
EREWASH BOROUGH COUNCIL,20622,Revenues and Benefits         ,Postages                      ,08-Feb-2023,ROYAL MAIL GROUP LTD.                   ,"1,062.72",Mar-23
EREWASH BOROUGH COUNCIL,20837,Revenues and Benefits         ,Postages                      ,15-Feb-2023,ROYAL MAIL GROUP LTD.                   ,685.14,Mar-23
EREWASH BOROUGH COUNCIL,20521,Revenues and Benefits         ,Postages                      ,03-Feb-2023,ROYAL MAIL GROUP LTD.                   ,360.00,Mar-23
EREWASH BOROUGH COUNCIL,20381,Revenues and Benefits         ,Postages                      ,01-Feb-2023,ROYAL MAIL GROUP LTD.                   ,"1,601.64",Mar-23
EREWASH BOROUGH COUNCIL,21067,Revenues and Benefits         ,Postages                      ,22-Feb-2023,ROYAL MAIL GROUP LTD.                   ,837.76,Mar-23
EREWASH BOROUGH COUNCIL,21261,Revenues and Benefits         ,Postages                      ,01-Mar-2023,ROYAL MAIL GROUP LTD.                   ,567.60,Mar-23
EREWASH BOROUGH COUNCIL,20522,Registration of Electors      ,Postages                      ,03-Feb-2023,ROYAL MAIL GROUP LTD.                   ,794.92,Mar-23
EREWASH BOROUGH COUNCIL,21423,Development Control           ,Courses and Seminars          ,08-Dec-2022,RTPI                                    ,275.00,Mar-23
EREWASH BOROUGH COUNCIL,21973,Dog Control                   ,Grants and Subscriptions      ,20-Feb-2023,SAFETY SIGNS & NOTICES                  ,446.10,Mar-23
EREWASH BOROUGH COUNCIL,20723,Registration of Electors      ,Stationery                    ,09-Feb-2023,SCI PRINT LTD                           ,910.83,Mar-23
EREWASH BOROUGH COUNCIL,21896,Green Space                   ,Metered Water                 ,01-Feb-2023,SCOTTISH WATER BUSINESS STREAM LIMITED  ,"1,213.76",Mar-23
EREWASH BOROUGH COUNCIL,21896,Public Conveniences           ,Metered Water                 ,01-Feb-2023,SCOTTISH WATER BUSINESS STREAM LIMITED  ,837.64,Mar-23
EREWASH BOROUGH COUNCIL,21897,Public Conveniences           ,Metered Water                 ,01-Mar-2023,SCOTTISH WATER BUSINESS STREAM LIMITED  ,"1,892.32",Mar-23
EREWASH BOROUGH COUNCIL,21897,Long Eaton Market             ,Metered Water                 ,01-Mar-2023,SCOTTISH WATER BUSINESS STREAM LIMITED  ,276.58,Mar-23
EREWASH BOROUGH COUNCIL,21896,Merlin Way Depot              ,Metered Water                 ,01-Feb-2023,SCOTTISH WATER BUSINESS STREAM LIMITED  ,"1,615.68",Mar-23
EREWASH BOROUGH COUNCIL,21897,Merlin Way Depot              ,Metered Water                 ,01-Mar-2023,SCOTTISH WATER BUSINESS STREAM LIMITED  ,"2,548.04",Mar-23
EREWASH BOROUGH COUNCIL,21897,Civic Accommodation Ilkeston  ,Metered Water                 ,01-Mar-2023,SCOTTISH WATER BUSINESS STREAM LIMITED  ,803.17,Mar-23
EREWASH BOROUGH COUNCIL,21896,Toll Bar House                ,Metered Water                 ,01-Feb-2023,SCOTTISH WATER BUSINESS STREAM LIMITED  ,"1,473.84",Mar-23
EREWASH BOROUGH COUNCIL,21897,Toll Bar House                ,Metered Water                 ,01-Mar-2023,SCOTTISH WATER BUSINESS STREAM LIMITED  ,"1,466.35",Mar-23
EREWASH BOROUGH COUNCIL,21897,Rutland Sports Park           ,Metered Water                 ,01-Mar-2023,SCOTTISH WATER BUSINESS STREAM LIMITED  ,452.02,Mar-23
EREWASH BOROUGH COUNCIL,20791,Green Space                   ,Repairs and Maintenance       ,10-Feb-2023,SDL MINORFERN                           ,334.84,Mar-23
EREWASH BOROUGH COUNCIL,20816,Street Scene                  ,Maintenance of Bus Shelters   ,13-Feb-2023,SHELTER MAINTENANCE CO                  ,"11,322.40",Mar-23
EREWASH BOROUGH COUNCIL,20564,ICT Support Services          ,Security                      ,31-Jan-2023,SOFTCAT LTD                             ,"10,589.00",Mar-23
EREWASH BOROUGH COUNCIL,20564,ICT Support Services          ,Security                      ,31-Jan-2023,SOFTCAT LTD                             ,"20,014.50",Mar-23
EREWASH BOROUGH COUNCIL,20564,ICT Support Services          ,Security                      ,31-Jan-2023,SOFTCAT LTD                             ,"2,153.66",Mar-23
EREWASH BOROUGH COUNCIL,20564,ICT Support Services          ,Security                      ,31-Jan-2023,SOFTCAT LTD                             ,"15,380.80",Mar-23
EREWASH BOROUGH COUNCIL,20564,ICT Support Services          ,Security                      ,31-Jan-2023,SOFTCAT LTD                             ,"2,708.00",Mar-23
EREWASH BOROUGH COUNCIL,21473,Director of Resources         ,Agency Staff                  ,07-Mar-2023,SOLACE IN BUSINESS                      ,"4,950.00",Mar-23
EREWASH BOROUGH COUNCIL,21408,Director of Resources         ,Agency Staff                  ,28-Feb-2023,SOLACE IN BUSINESS                      ,"10,395.00",Mar-23
EREWASH BOROUGH COUNCIL,21408,Director of Resources         ,Agency Staff                  ,28-Feb-2023,SOLACE IN BUSINESS                      ,"9,405.00",Mar-23
EREWASH BOROUGH COUNCIL,20793,Green Space                   ,Materials and Consumables     ,10-Feb-2023,STEELCRAFT FABRICATIONS                 ,565.00,Mar-23
EREWASH BOROUGH COUNCIL,20792,Green Space                   ,Repairs and Maintenance       ,10-Feb-2023,STEELCRAFT FABRICATIONS                 ,890.00,Mar-23
EREWASH BOROUGH COUNCIL,20738,Car Parking                   ,Reactive Maintenance          ,03-Feb-2023,STEELCRAFT FABRICATIONS                 ,390.00,Mar-23
EREWASH BOROUGH COUNCIL,20517,Corporate Health and Safety   ,Water Testing                 ,31-Jan-2023,STERILIZING SERVICES LTD                ,804.00,Mar-23
EREWASH BOROUGH COUNCIL,21216,Green Space                   ,Materials and Consumables     ,14-Feb-2023,STREETMASTER (SOUTH WALES) LTD          ,"1,016.10",Mar-23
EREWASH BOROUGH COUNCIL,21454,Commissioned Projects         ,Grants and Subscriptions      ,28-Feb-2023,SUPPORT THROUGH SPORT                   ,983.25,Mar-23
EREWASH BOROUGH COUNCIL,21207,CCTV - Ilkeston and Long Eaton,Maintenance of Equipment      ,22-Feb-2023,SYNECTICS SECURITY LIMITED              ,640.00,Mar-23
EREWASH BOROUGH COUNCIL,21220,Planning Policy               ,Consultants Fees              ,10-Feb-2023,SYSTRA                                  ,"22,182.00",Mar-23
EREWASH BOROUGH COUNCIL,22208,Council Tax Collection        ,Fees Costs and Expenses       ,24-Mar-2023,TAMESIDE METROPOLITAN BOROUGH           ,"1,700.00",Mar-23
EREWASH BOROUGH COUNCIL,21394,Property and Estates          ,Repairs and Maintenance       ,03-Mar-2023,TECSERV UK                              ,288.00,Mar-23
EREWASH BOROUGH COUNCIL,20990,Property and Estates          ,Alarms Reactive Maintenance   ,17-Feb-2023,TECSERV UK                              ,736.00,Mar-23
EREWASH BOROUGH COUNCIL,21265,Toll Bar House                ,Alarms Planned Maintenence    ,28-Feb-2023,TECSERV UK                              ,256.76,Mar-23
EREWASH BOROUGH COUNCIL,20717,Revenues and Benefits         ,Postages                      ,31-Jan-2023,TELSOLUTIONS LTD                        ,300.00,Mar-23
EREWASH BOROUGH COUNCIL,21928,Revenues and Benefits         ,Postages                      ,28-Feb-2023,TELSOLUTIONS LTD                        ,300.00,Mar-23
EREWASH BOROUGH COUNCIL,20803,Household Waste Collection    ,Repairs and Maintenance       ,13-Feb-2023,TERBERG MATEC UK                        ,327.02,Mar-23
EREWASH BOROUGH COUNCIL,20803,Household Waste Collection    ,Repairs and Maintenance       ,13-Feb-2023,TERBERG MATEC UK                        ,315.37,Mar-23
EREWASH BOROUGH COUNCIL,20612,Ilkeston Market               ,Publicity and Promotion       ,03-Feb-2023,THE GREAT ADAMOS                        ,380.00,Mar-23
EREWASH BOROUGH COUNCIL,23021,Transport Trading Account     ,Fuel                          ,31-Mar-2023,THE RIGHT FUELCARD COMPANY LTD          ,609.52,Mar-23
EREWASH BOROUGH COUNCIL,20582,Registration of Electors      ,Subscriptions                 ,01-Feb-2023,THOMSON REUTERS                         ,343.00,Mar-23
EREWASH BOROUGH COUNCIL,21666,Trees Hedges Local Nature Res ,Contracted Services           ,09-Mar-2023,TOM RICHARDS TREE SERVICES              ,450.00,Mar-23
EREWASH BOROUGH COUNCIL,22201,Trees Hedges Local Nature Res ,Contracted Services           ,24-Jan-2023,TOM RICHARDS TREE SERVICES              ,400.00,Mar-23
EREWASH BOROUGH COUNCIL,22200,Trees Hedges Local Nature Res ,Contracted Services           ,22-Dec-2022,TOM RICHARDS TREE SERVICES              ,"4,250.00",Mar-23
EREWASH BOROUGH COUNCIL,20989,Erewash Museum                ,Electricity                   ,14-Feb-2023,TOTALENERGIES GAS & POWER LTD           ,772.84,Mar-23
EREWASH BOROUGH COUNCIL,20949,Erewash Museum                ,Gas                           ,15-Feb-2023,TOTALENERGIES GAS & POWER LTD           ,588.83,Mar-23
EREWASH BOROUGH COUNCIL,20988,Green Space                   ,Electricity                   ,14-Feb-2023,TOTALENERGIES GAS & POWER LTD           ,"2,184.99",Mar-23
EREWASH BOROUGH COUNCIL,20989,Green Space                   ,Electricity                   ,14-Feb-2023,TOTALENERGIES GAS & POWER LTD           ,"4,289.81",Mar-23
EREWASH BOROUGH COUNCIL,20989,Green Space                   ,Electricity                   ,14-Feb-2023,TOTALENERGIES GAS & POWER LTD           ,816.83,Mar-23
EREWASH BOROUGH COUNCIL,20949,Green Space                   ,Gas                           ,15-Feb-2023,TOTALENERGIES GAS & POWER LTD           ,441.43,Mar-23
EREWASH BOROUGH COUNCIL,20949,Green Space                   ,Gas                           ,15-Feb-2023,TOTALENERGIES GAS & POWER LTD           ,469.14,Mar-23
EREWASH BOROUGH COUNCIL,20989,Cemeteries                    ,Electricity                   ,14-Feb-2023,TOTALENERGIES GAS & POWER LTD           ,637.29,Mar-23
EREWASH BOROUGH COUNCIL,20989,Public Conveniences           ,Electricity                   ,14-Feb-2023,TOTALENERGIES GAS & POWER LTD           ,332.24,Mar-23
EREWASH BOROUGH COUNCIL,20989,Public Conveniences           ,Electricity                   ,14-Feb-2023,TOTALENERGIES GAS & POWER LTD           ,866.86,Mar-23
EREWASH BOROUGH COUNCIL,20989,CCTV - Ilkeston and Long Eaton,Electricity                   ,14-Feb-2023,TOTALENERGIES GAS & POWER LTD           ,720.01,Mar-23
EREWASH BOROUGH COUNCIL,20989,Car Parking                   ,Electricity                   ,14-Feb-2023,TOTALENERGIES GAS & POWER LTD           ,"1,530.63",Mar-23
EREWASH BOROUGH COUNCIL,20988,Long Eaton Market             ,Electricity                   ,14-Feb-2023,TOTALENERGIES GAS & POWER LTD           ,267.12,Mar-23
EREWASH BOROUGH COUNCIL,20989,Ilkeston Market               ,Electricity                   ,14-Feb-2023,TOTALENERGIES GAS & POWER LTD           ,880.56,Mar-23
EREWASH BOROUGH COUNCIL,20989,Shopmobility - Ilkeston       ,Electricity                   ,14-Feb-2023,TOTALENERGIES GAS & POWER LTD           ,463.99,Mar-23
EREWASH BOROUGH COUNCIL,20989,Shopmobility - Long Eaton     ,Electricity                   ,14-Feb-2023,TOTALENERGIES GAS & POWER LTD           ,"1,117.43",Mar-23
EREWASH BOROUGH COUNCIL,20988,Merlin Way Depot              ,Electricity                   ,14-Feb-2023,TOTALENERGIES GAS & POWER LTD           ,"4,933.91",Mar-23
EREWASH BOROUGH COUNCIL,20949,Merlin Way Depot              ,Gas                           ,15-Feb-2023,TOTALENERGIES GAS & POWER LTD           ,"1,205.14",Mar-23
EREWASH BOROUGH COUNCIL,20988,Civic Accommodation Long Eaton,Electricity                   ,14-Feb-2023,TOTALENERGIES GAS & POWER LTD           ,"3,671.13",Mar-23
EREWASH BOROUGH COUNCIL,20949,Civic Accommodation Long Eaton,Gas                           ,15-Feb-2023,TOTALENERGIES GAS & POWER LTD           ,"1,495.16",Mar-23
EREWASH BOROUGH COUNCIL,20949,Bridge House - Long Eaton     ,Gas                           ,15-Feb-2023,TOTALENERGIES GAS & POWER LTD           ,410.60,Mar-23
EREWASH BOROUGH COUNCIL,20988,Civic Accommodation Ilkeston  ,Electricity                   ,14-Feb-2023,TOTALENERGIES GAS & POWER LTD           ,"2,560.94",Mar-23
EREWASH BOROUGH COUNCIL,20989,Civic Accommodation Ilkeston  ,Electricity                   ,14-Feb-2023,TOTALENERGIES GAS & POWER LTD           ,861.53,Mar-23
EREWASH BOROUGH COUNCIL,20949,Civic Accommodation Ilkeston  ,Gas                           ,15-Feb-2023,TOTALENERGIES GAS & POWER LTD           ,"1,758.99",Mar-23
EREWASH BOROUGH COUNCIL,20989,Toll Bar House                ,Electricity                   ,14-Feb-2023,TOTALENERGIES GAS & POWER LTD           ,"7,083.82",Mar-23
EREWASH BOROUGH COUNCIL,20988,Sandiacre Friesland Sports Ctr,Electricity                   ,14-Feb-2023,TOTALENERGIES GAS & POWER LTD           ,"1,399.93",Mar-23
EREWASH BOROUGH COUNCIL,20949,Sandiacre Friesland Sports Ctr,Gas                           ,15-Feb-2023,TOTALENERGIES GAS & POWER LTD           ,790.66,Mar-23
EREWASH BOROUGH COUNCIL,21405,Transport Trading Account     ,Computer Software             ,16-Feb-2023,TRUTAC LTD                              ,"1,620.00",Mar-23
EREWASH BOROUGH COUNCIL,21051,EBC Balance Sheet             ,Payroll Coll Acc - Trade Union,21-Feb-2023,UNISON                                  ,334.80,Mar-23
EREWASH BOROUGH COUNCIL,22220,EBC Balance Sheet             ,Payroll Coll Acc - Trade Union,28-Mar-2023,UNISON                                  ,334.80,Mar-23
EREWASH BOROUGH COUNCIL,21652,Public Conveniences           ,Materials and Consumables     ,13-Feb-2023,WARD RECYCLING                          ,535.00,Mar-23
EREWASH BOROUGH COUNCIL,21187,Communications                ,Publicity and Promotion       ,24-Feb-2023,WARNER (MIDLANDS) PLC                   ,"7,852.20",Mar-23
EREWASH BOROUGH COUNCIL,21583,Council Tax Collection        ,Fees Costs and Expenses       ,06-Mar-2023,WILKIN CHAPMAN LLP                      ,"1,387.50",Mar-23
